Cogmind - Beta 13 @@@ ROGUE MODE // 2024.06.05 @ 23:40:22 Player: BatSpy Result: Destroyed by S-27 Virus with Autogun Performance ------------- Evolutions (3) 1500 Regions Visited (8) 1600 Robots Destroyed (0) 0 Value Destroyed (0) 0 Prototype IDs (30) 600 Alien Tech Used (0) 0 Bonus (1228) 1228 TOTAL SCORE: 4928 Bonus ------- Pacifist 928 Aligned with FarCom 300 Cogmind --------- Core Integrity 0/700 Matter 261/300 Energy 149/150 System Corruption 7% Temperature Cool (0) Movement Core (100) Ox1 Location -7/Lower Caves Parts ------- > --- POWER (2) -------- Micro Nuclear Core > --- PROPULSION (4) --- (None) > --- UTILITY (5) ------ Machine Analyzer > --- WEAPON (2) ------- (None) > --- INVENTORY (5) ---- Nuclear Core Improved Propulsion Shielding PSU Rigger Remote Datajack Peak State ------------ > --- POWER ------------ Nuclear Core Micro Nuclear Core > --- PROPULSION ------- Aerolev Unit Gravmag System Cooled Airjet Xenon Bombardment Thruster > --- UTILITY ---------- Weight Redist. System Machine Analyzer Transmission Jammer Improved Recalibrator Improved Recalibrator > --- WEAPON ----------- Remote Datajack Remote Datajack > --- INVENTORY -------- Compact Matter Pod Improved Propulsion Shielding Improved Propulsion Shielding PSU Rigger Remote Datajack [Rating: 55] Favorites ----------- Power Light Nuclear Core Engine Improved Ion Engine Power Core Light Nuclear Core Propulsion Cesium-ion Thruster Hover Unit Cooled Airjet Flight Unit Cesium-ion Thruster Utility Machine Analyzer Device PSU Rigger Processor Machine Analyzer Protection Improved Propulsion Shielding Weapon Remote Datajack Energy Gun Precision Shock Rifle Ballistic Cannon Mini Assault Cannon Special Weapon Remote Datajack Slashing Weapon Mining Claw Special Melee Weapon Improved Datajack Build | -11 -10 -9 -9 -9 -8 -8 -7 -7 ------- Run | Yrd Mat Mat Min Exi Min Mat Fac Low Slots Evolved 6 | . . 2 . . . 2 2 . Power 1 | . . 1 . . . . . . Propulsion 2 | . . 1 . . . . 1 . Utility 3 | . . . . . . 2 1 . Weapon . | . . . . . . . . . Parts Attached 71 | . 2 4 4 7 2 16 33 3 Power 12 | . . 1 2 1 . 2 6 . Engine 5 | . . 1 2 1 . 1 . . Core 7 | . . . . . . 1 6 . Reactor . | . . . . . . . . . Propulsion 20 | . . 1 1 . 2 6 10 . Treads . | . . . . . . . . . Leg . | . . . . . . . . . Wheel . | . . . . . . . . . Hover 7 | . . . . . . . 7 . Flight 13 | . . 1 1 . 2 6 3 . Utility 26 | . 2 1 1 4 . 6 10 2 Device 18 | . 2 1 1 4 . 3 6 1 Storage . | . . . . . . . . . Processor 1 | . . . . . . 1 . . Hackware . | . . . . . . . . . Protection 7 | . . . . . . 2 4 1 Artifact . | . . . . . . . . . Weapon 13 | . . 1 . 2 . 2 7 1 Energy Gun 2 | . . . . 1 . . 1 . Energy Cannon . | . . . . . . . . . Ballistic Gun . | . . . . . . . . . Ballistic Cannon 1 | . . . . . . . 1 . Launcher . | . . . . . . . . . Special Weapon 6 | . . . . . . . 5 1 Impact Weapon . | . . . . . . . . . Slashing Weapon 3 | . . 1 . 1 . 1 . . Piercing Weapon . | . . . . . . . . . Special Melee Weapon 1 | . . . . . . 1 . . Unidentified Prototypes 8 | . . . . 3 . . 5 . Parts Lost 25 | . . . 1 . 2 4 11 7 Power 4 | . . . 1 . . 1 2 . Propulsion 9 | . . . . . 2 2 2 3 Utility 8 | . . . . . . 1 4 3 Weapon 4 | . . . . . . . 3 1 Highest Loss Streak 7 | . . . 1 . 2 2 3 7 To Critical Strikes . | . . . . . . . . . Average Slot Usage (%) 65 | . 18 30 50 44 22 70 82 57 Engine 2 | . . . 8 8 1 6 . . Core 4 | . . . . . . 2 9 7 Hover 5 | . . . . . . . 13 5 Flight 17 | . . 8 19 22 10 25 15 11 Device 18 | . 18 22 22 13 11 18 20 13 Processor 4 | . . . . . . 6 7 7 Protection 3 | . . . . . . 4 5 5 Special Weapon 2 | . . . . . . . 5 5 Special Melee Weapon 1 | . . . . . . 2 2 . Naked Turns 5 | . 5 . . . . . . . Heaviest Build 22 | . 2 2 8 8 8 17 22 12 Greatest Support 34 | 3 3 4 8 8 8 15 34 14 Greatest Overweight (x) 2 | . . . . . 2 1 2 1 Average Overweight (x) . | . . . . . . . . . Largest Inventory Capacity 5 | 5 5 5 5 5 5 5 5 5 Average Capacity 5 | 5 5 5 5 5 5 5 5 5 Most Carried 5 | 1 3 4 4 5 5 5 5 5 Average Carried 4 | . 1 2 3 3 4 4 4 4 Final Capacity 5 | 5 5 5 5 5 5 5 5 5 Final Carried 5 | 1 3 3 3 5 5 5 5 4 Class Distribution -------------------- 53% | Mutant 24% | Sprinter 20% | Scout Dominant Class ---------------- Mutant | -10/Materials Mutant | -9/Materials Mutant | -9/Mines Mutant | -9/Exiles Scout | -8/Mines Scout | -8/Materials Mutant | -7/Factory Mutant | -7/Lower Caves Resources | -11 -10 -9 -9 -9 -8 -8 -7 -7 ----------- Run | Yrd Mat Mat Min Exi Min Mat Fac Low Matter Collected 994 | 200 . . 16 178 56 219 207 118 Remotely . | . . . . . . . . . Salvage Created . | . . . . . . . . . Parts . | . . . . . . . . . Haulers Intercepted . | . . . . . . . . . Recyclers Shooed . | . . . . . . . . . Parts Field Recycled . | . . . . . . . . . Retrieved Matter . | . . . . . . . . . Parts Self-Destructed 5 | . . . . . . . . 5 Prevented 1 | . . . . . . . . 1 Kills | -11 -10 -9 -9 -9 -8 -8 -7 -7 ------- Run | Yrd Mat Mat Min Exi Min Mat Fac Low Combat Hostiles Destroyed . | . . . . . . . . . Classes Destroyed . | . . . . . . . . . Best Kill Streak . | . . . . . . . . . Combat Bots Only . | . . . . . . . . . Max Kills in Single Turn . | . . . . . . . . . Gunslinging . | . . . . . . . . . Exploded . | . . . . . . . . . Melee . | . . . . . . . . . Uniques/NPCs Destroyed . | . . . . . . . . . Combat | -11 -10 -9 -9 -9 -8 -8 -7 -7 -------- Run | Yrd Mat Mat Min Exi Min Mat Fac Low Hostile Shots Fired 411 | . 5 3 8 . 52 63 201 79 Missed 199 | . 2 1 5 . 21 36 105 29 Damage Taken 2649 | . 22 18 23 . 253 408 1165 760 Core 1048 | . 22 18 . . 204 94 278 432 Absorbed by Shields . | . . . . . . . . . Redirected to Shielding 253 | . . . . . . 38 131 84 Regen/Repaired (Parts) 21 | . . . . . . 21 . . Core Remaining (%) 79 | 100 91 . . . 44 82 . . Volleys Fired . | . . . . . . . . . Largest . | . . . . . . . . . Hottest . | . . . . . . . . . Shots Fired . | . . . . . . . . . Gun . | . . . . . . . . . Cannon . | . . . . . . . . . Launcher . | . . . . . . . . . Special . | . . . . . . . . . Kinetic . | . . . . . . . . . Thermal . | . . . . . . . . . Explosive . | . . . . . . . . . Electromagnetic . | . . . . . . . . . Robot Hit Streak . | . . . . . . . . . Robot Miss Streak . | . . . . . . . . . Penetration Max . | . . . . . . . . . Secondary Targets . | . . . . . . . . . Shots Hit Robots 2 | . . . . . . 1 1 . Core Hits 1 | . . . . . . 1 . . Critical Kills . | . . . . . . . . . Critical Parts Destroyed . | . . . . . . . . . Critical Strikes . | . . . . . . . . . Melee Attacks 3 | . . . . . . 2 1 . Impact . | . . . . . . . . . Slashing 1 | . . . . . . 1 . . Piercing . | . . . . . . . . . Sneak Attacks . | . . . . . . . . . Combat Hostiles . | . . . . . . . . . Follow-up Attacks . | . . . . . . . . . Damage Inflicted 64 | . . . . . . 31 33 . Guns . | . . . . . . . . . Cannons . | . . . . . . . . . Explosions . | . . . . . . . . . Melee 26 | . . . . . . 26 . . Ramming 38 | . . . . . . 5 33 . Kinetic . | . . . . . . . . . Thermal . | . . . . . . . . . Explosive . | . . . . . . . . . Electromagnetic . | . . . . . . . . . Impact . | . . . . . . . . . Slashing 26 | . . . . . . 26 . . Piercing . | . . . . . . . . . Highest Corruption 7 | . . . . . . 1 7 7 Average Corruption 4 | . . . . . . 1 4 7 Corruption Purged . | . . . . . . . . . Corruption Blocked . | . . . . . . . . . Effects 18 | . . . . . . 1 12 5 Message Errors 4 | . . . . . . . 4 . Matter Fused 6 | . . . . . . . 4 2 Heat Flow Errors 4 | . . . . . . . 2 2 Energy Discharges 1 | . . . . . . 1 . . Data Loss (minor) 1 | . . . . . . . 1 . Data Loss (major) 2 | . . . . . . . 1 1 Overload Shots . | . . . . . . . . . Overflow Damage . | . . . . . . . . . Projectiles . | . . . . . . . . . Explosions . | . . . . . . . . . Melee . | . . . . . . . . . Knockbacks . | . . . . . . . . . Impact . | . . . . . . . . . Kinetic . | . . . . . . . . . Secondary . | . . . . . . . . . Self-Inflicted Damage 18 | . . . . . . 2 16 . Shots . | . . . . . . . . . Rammed 3 | . . . . . . 1 2 . Targets Rammed 3 | . . . . . . 1 2 . Kicked . | . . . . . . . . . Crushed . | . . . . . . . . . Highest Temperature 303 | . . . . . . 9 303 235 Average Temperature 123 | . . . . . . 9 129 109 Received Heat Transfer 381 | . . 6 . . . 180 159 36 Siege Activations . | . . . . . . . . . Robots Corrupted . | . . . . . . . . . Combat Hostiles . | . . . . . . . . . Parts Fried . | . . . . . . . . . Impact Corruptions . | . . . . . . . . . Robots Melted . | . . . . . . . . . Combat Hostiles . | . . . . . . . . . Parts Melted . | . . . . . . . . . Heat Transferred . | . . . . . . . . . Parts Sabotaged . | . . . . . . . . . Parts Stolen . | . . . . . . . . . Parts Stripped . | . . . . . . . . . Power Chain Reactions . | . . . . . . . . . Alert | -11 -10 -9 -9 -9 -8 -8 -7 -7 ------- Run | Yrd Mat Mat Min Exi Min Mat Fac Low Peak Influence 442 | . 13 69 136 . 45 442 395 . Initial 200 | . . 5 26 . . 17 200 . Average 186 | . 6 12 38 . 15 188 252 . Maximum Alert Level 2 | . . . . . . 2 1 . Low Security (%) 41 | 100 100 100 100 . 100 53 11 . Level 1 55 | . . . . . . 36 88 . Level 2 2 | . . . . . . 9 . . Level 3 . | . . . . . . . . . Level 4 . | . . . . . . . . . Level 5 . | . . . . . . . . . High Security . | . . . . . . . . . Max Security . | . . . . . . . . . Squads Dispatched 7 | . . 1 . . . 2 4 . Investigation 3 | . . 1 . . . 1 1 . Extermination 2 | . . . . . . . 2 . Reinforcement 2 | . . . . . . 1 1 . Assault . | . . . . . . . . . Garrison . | . . . . . . . . . Intercept . | . . . . . . . . . Searches Triggered . | . . . . . . . . . Construction Impeded . | . . . . . . . . . Haulers Reinforced . | . . . . . . . . . Active Scanning Responses . | . . . . . . . . . Cargo Convoy Interrupts . | . . . . . . . . . Stealth | -11 -10 -9 -9 -9 -8 -8 -7 -7 --------- Run | Yrd Mat Mat Min Exi Min Mat Fac Low Distress Signals 3 | . . . . . . 1 2 . Communications Jammed 11 | . . . . . . . 11 . Distress Signals 11 | . . . . . . . 11 . Times Spotted 100 | . 3 5 9 . 5 31 30 17 Peak Tracking Total 14 | . 3 8 9 . 4 11 8 14 Tactical Retreats 26 | . . 1 1 . 2 9 11 2 Traps | -11 -10 -9 -9 -9 -8 -8 -7 -7 ------- Run | Yrd Mat Mat Min Exi Min Mat Fac Low Traps Triggered 2 | . . . . . . . 2 . Indirectly . | . . . . . . . . . Trap Hack Attempts . | . . . . . . . . . Triggered . | . . . . . . . . . Disarmed . | . . . . . . . . . Reprogrammed . | . . . . . . . . . Reused . | . . . . . . . . . Traps Extracted . | . . . . . . . . . Installed . | . . . . . . . . . Triggered 1 | . . . . . . . . 1 Objects Rigged 1 | . . . . . . . 1 . Machines | -11 -10 -9 -9 -9 -8 -8 -7 -7 ---------- Run | Yrd Mat Mat Min Exi Min Mat Fac Low Machines Disabled . | . . . . . . . . . Max in Single Turn . | . . . . . . . . . Garrison Access 1 | . . . . . . 1 . . Machines Repaired . | . . . . . . . . . Machines Dismantled . | . . . . . . . . . Machines Sabotaged . | . . . . . . . . . Overloaded Fab Kills . | . . . . . . . . . Hacking | -11 -10 -9 -9 -9 -8 -8 -7 -7 --------- Run | Yrd Mat Mat Min Exi Min Mat Fac Low Machines Accessed 28 | . 6 2 . 1 . 13 5 1 Terminals 20 | . 6 2 . . . 9 2 1 Fabricators 2 | . . . . . . . 2 . Repair Stations 1 | . . . . . . 1 . . Recycling Units 1 | . . . . . . 1 . . Scanalyzers 2 | . . . . . . 1 1 . Garrison Access 1 | . . . . . . 1 . . Total Hacks 89 | . 25 7 . 1 . 40 13 3 Successful 50 | . 8 2 . 1 . 28 8 3 Failed 39 | . 17 5 . . . 12 5 . Catastrophic 7 | . 4 . . . . 3 . . Database Lockouts . | . . . . . . . . . Manual 48 | . 17 5 . 1 . 22 3 . Terminals 63 | . 25 7 . . . 24 4 3 Fabricators 5 | . . . . . . . 5 . Repair Stations 2 | . . . . . . 2 . . Recycling Units 1 | . . . . . . 1 . . Scanalyzers 14 | . . . . . . 10 4 . Garrison Access 3 | . . . . . . 3 . . Terminal Hacks 16 | . 4 2 . 1 . 5 1 3 Record 3 | . . . . . . . . 3 Prototype ID Bank 1 | . . . . . . 1 . . Open DSF 1 | . . . . . . . 1 . Terminal Index 2 | . 1 . . . . 1 . . Locate Traps 3 | . 1 . . . . 2 . . Dispatch Records 1 | . . 1 . . . . . . Zone Layout 4 | . 2 1 . . . 1 . . Derelict Proto ID Bank 1 | . . . . 1 . . . . Fabricator Hacks 2 | . . . . . . . 2 . Build 2 | . . . . . . . 2 . Repair Station Hacks 2 | . . . . . . 2 . . Scan Component 1 | . . . . . . 1 . . Repair 1 | . . . . . . 1 . . Recycling Unit Hacks 1 | . . . . . . 1 . . Report Inventory 1 | . . . . . . 1 . . Scanalyzer 14 | . . . . . . 10 4 . Insert Component 7 | . . . . . . 5 2 . Analyze 7 | . . . . . . 5 2 . Garrison Access Hacks 1 | . . . . . . 1 . . Seal Access 1 | . . . . . . 1 . . Unauthorized Hacks 14 | . 4 . . . . 9 1 . Terminals 14 | . 4 . . . . 9 1 . Assimilate 2 | . . . . . . 1 1 . Botnet 12 | . 4 . . . . 8 . . Fabricators . | . . . . . . . . . Repair Stations . | . . . . . . . . . Recycling Units . | . . . . . . . . . Scanalyzers . | . . . . . . . . . Garrison Access . | . . . . . . . . . Data Cores Recovered . | . . . . . . . . . Used . | . . . . . . . . . Hacking Detections 23 | . 6 2 . . . 11 4 . Full Trace Events 2 | . . 1 . . . 1 . . Feedback Events 1 | . . . . . . 1 . . Corruption 1 | . . . . . . 1 . . Feedback Blocked . | . . . . . . . . . Robot Schematics Acquired . | . . . . . . . . . Robots Built . | . . . . . . . . . Authchips . | . . . . . . . . . Time . | . . . . . . . . . Total Robot Build Rating . | . . . . . . . . . Part Schematics Acquired 5 | . . . . . . 3 2 . Parts Built 3 | . . . . . . . 3 . Authchips . | . . . . . . . . . Time 153 | . . . . . . . 153 . Total Part Build Rating 17 | . . . . . . . 17 . Parts Repaired 1 | . . . . . . 1 . . Time 38 | . . . . . . 38 . . Parts Recycled . | . . . . . . . . . Recycled Matter . | . . . . . . . . . Retrieved Matter . | . . . . . . . . . Retrieved Components . | . . . . . . . . . Parts Scanalyzed 5 | . . . . . . 3 2 . Part Schematics Acquired 5 | . . . . . . 3 2 . Parts Damaged 1 | . . . . . . . 1 . Bothacking | -11 -10 -9 -9 -9 -8 -8 -7 -7 ------------ Run | Yrd Mat Mat Min Exi Min Mat Fac Low Used RIF Installer . | . . . . . . . . . Robots Hacked 1 | . . . . . . . 1 . Non-combat . | . . . . . . . . . Combat 1 | . . . . . . . 1 . Robot Hacks Applied 1 | . . . . . . . 1 . parse_system 1 | . . . . . . . 1 . Relay Couplers Released . | . . . . . . . . . Fabnet Peak Effective % . | . . . . . . . . . Robots Rewired . | . . . . . . . . . Allies Hacked . | . . . . . . . . . Hacks Repelled . | . . . . . . . . . Allies | -11 -10 -9 -9 -9 -8 -8 -7 -7 -------- Run | Yrd Mat Mat Min Exi Min Mat Fac Low Total Allies 2 | . . . . . . 1 1 . Largest Group 1 | . . . . . . 1 1 . Highest-Rated Group 10 | . . . . . . 10 10 . Highest-Rated Ally 10 | . . . . . . 10 10 . Total Orders . | . . . . . . . . . Ally Attacks . | . . . . . . . . . Total Damage . | . . . . . . . . . Kills . | . . . . . . . . . Allies Corrupted . | . . . . . . . . . Allies Melted . | . . . . . . . . . Intel | -11 -10 -9 -9 -9 -8 -8 -7 -7 ------- Run | Yrd Mat Mat Min Exi Min Mat Fac Low Robot Analysis Total . | . . . . . . . . . Derelict Logs Recovered . | . . . . . . . . . Drone Launches . | . . . . . . . . . Drone Recoveries . | . . . . . . . . . Exploration | -11 -10 -9 -9 -9 -8 -8 -7 -7 ------------- Run | Yrd Mat Mat Min Exi Min Mat Fac Low Turns Passed 2740 | 14 135 107 91 321 110 681 1166 115 Spaces Moved 5193 | 26 249 219 224 821 239 1203 2002 210 Core 449 | 26 249 42 . . 118 . 13 1 Treads . | . . . . . . . . . Legs . | . . . . . . . . . Wheels . | . . . . . . . . . Hover 754 | . . . . . . . 590 164 Flight 3990 | . . 177 224 821 121 1203 1399 45 Fastest Speed 29 | 50 50 40 37 37 37 29 29 35 Average Speed 40 | 50 50 41 37 37 44 31 44 51 Slowest Speed 180 | 50 50 50 40 37 150 112 180 100 Overloaded Moves . | . . . . . . . . . Propulsion Burnouts . | . . . . . . . . . Robots Hopped 25 | . . . 2 . 1 8 14 . Cave-ins Triggered . | . . . . . . . . . Exploration Rate (%) 48 | 3 53 28 43 92 73 69 45 26 Regions Visited 8 Branch Regions 4 Pre-discovered Areas 1 | . . . . . . . . 1 Known Exits Taken . | . . . . . . . . . Unknown Exits Taken 8 | 1 1 1 1 1 1 1 1 . Scrap Searched 4 | . . . 1 . 3 . . . Spaces Dug . | . . . . . . . . . Terrain Destroyed . | . . . . . . . . . Melee . | . . . . . . . . . Projectile . | . . . . . . . . . AOE . | . . . . . . . . . Terrain Rammed . | . . . . . . . . . Walls Destroyed . | . . . . . . . . . Machines Disabled . | . . . . . . . . . Actions | -11 -10 -9 -9 -9 -8 -8 -7 -7 --------- Run | Yrd Mat Mat Min Exi Min Mat Fac Low Total 5803 | 26 258 234 229 841 241 1491 2265 218 Wait 485 | . 4 7 . . . 262 212 . Move 5134 | 25 248 218 219 820 236 1186 1972 210 Hop 25 | . . . 2 . 1 8 14 . Pick Up 35 | 1 4 2 2 6 . 10 10 . Fast Attach 23 | . . . . 1 2 5 15 . Attach 31 | . 2 3 4 6 . 8 6 2 Detach 12 | . . 2 2 3 1 . 1 3 Swap 17 | . . 1 . . . 3 12 1 Drop 33 | . . 1 . 5 1 6 18 2 Fire . | . . . . . . . . . Melee 3 | . . . . . . 2 1 . Ram 3 | . . . . . . 1 2 . Kick . | . . . . . . . . . Crush . | . . . . . . . . . Escape Stasis 1 | . . . . . . . 1 . Rewire . | . . . . . . . . . Trap 1 | . . . . . . . 1 . Miscellaneous . | . . . . . . . . . Route ------- -11/Scrapyard -10/Materials -9/Materials -9/Mines -9/Exiles (discovered 2 exits: [*Min x2]) -8/Mines -8/Materials -7/Factory (discovered 2 exits: [*Fac] / *Low) -7/Lower Caves History --------- Turn | Location | Event 6 | -11/Scrapyard | Discovered new exit (range 16) 15 | -11/Scrapyard | Entered Materials 94 | -10/Materials | Discovered new exit (range 16) 150 | -10/Materials | Entered another Materials area 150 | -9/Materials | Evolved 2 slots: Power x1, Propulsion x1 251 | -9/Materials | Discovered new exit (range 15) 257 | -9/Materials | Entered Mines 296 | -9/Mines | Assembled infested the area 307 | -9/Mines | Build established: Mutant 347 | -9/Mines | Discovered new exit (range 5) 348 | -9/Mines | Entered Exiles 354 | -9/Exiles | Discovered new exit (range 14) 365 | -9/Exiles | Met 8R-AWN 371 | -9/Exiles | Met EX-HEX 384 | -9/Exiles | Met EX-BIN 436 | -9/Exiles | Met EX-DEC 466 | -9/Exiles | Discovered new exit (range 14) 508 | -9/Exiles | Visited The Gauntlet 604 | -9/Exiles | Aligned with FarCom system 604 | -9/Exiles | Given EX-Vault access code 613 | -9/Exiles | Opened EX-Vault 615 | -9/Exiles | Found Prototype Device 616 | -9/Exiles | Identified PSU Rigger 619 | -9/Exiles | Found Prototype Slashing Weapon 620 | -9/Exiles | Identified Longsword +1 623 | -9/Exiles | Found Prototype Energy Gun 624 | -9/Exiles | Identified AWS/Thermal 640 | -9/Exiles | Warned to stay clear of 0b10 Research branches 669 | -9/Exiles | Left Exiles lab with PSU Rigger 669 | -9/Exiles | Entered Mines 738 | -8/Mines | Core integrity fell below 50% 773 | -8/Mines | Discovered new exit (range 15) 779 | -8/Mines | Entered Materials 779 | -8/Materials | Evolved 2 slots: Utility x2 966 | -8/Materials | Build established: Scout 1186 | -8/Materials | Discovered new exit (range 15) 1367 | -8/Materials | Repaired Cesium-ion Thruster 1460 | -8/Materials | Entered Factory 1460 | -7/Factory | Evolved 2 slots: Propulsion x1, Utility x1 1662 | -7/Factory | Build established: Sprinter 1760 | -7/Factory | Fabricated Adv. Sensor Array? 1987 | -7/Factory | Lost 3 parts (1p1n1w) 2264 | -7/Factory | Build established: Mutant 2469 | -7/Factory | Fabricated Imp. Recalibrator (x2) 2486 | -7/Factory | Discovered new exit (range 8) 2531 | -7/Factory | Discovered new exit (range 6) 2626 | -7/Factory | Entered Lower Caves 2648 | -7/Lower Caves | Lost 3 parts (1n2u) 2697 | -7/Lower Caves | Attracted the attention of an 0b10 base 2702 | -7/Lower Caves | Learned Factory trap positions 2702 | -7/Lower Caves | Learned Extension garrison access intel 2708 | -7/Lower Caves | Core integrity fell below 50% 2738 | -7/Lower Caves | Core integrity fell below 20% 2741 | -7/Lower Caves | Destroyed by S-27 Virus with Autogun Last Messages --------------- INTERCEPTED DERELICT INTEL. Data stored: Factory trap records. >>Query(Status Report 858X) INTERCEPTED DERELICT INTEL. Data stored: Extension garrison access intel. 02706_ Slug penetrates Outpost Generator. 02707_ Penetrated by Slug. 02708_ Remote Datajack destroyed. 02711_ Imp. Propulsion Shielding destroyed. 02714_ Aerolev Unit destroyed. 02720_ System corrupted: Heat flow error (+189). 02724_ Weight Redist. System destroyed. 02734_ Dropped Com. Matter Pod. 02735_ Extracted 118 matter. 02735_ S-27 Virus destroyed. 02736_ BM-S25(k) destroyed. 02737_ System corrupted: Substantial component data lost. 02737_ Imp. Recalibrator destroyed. 02740_ Cld. VTOL Module destroyed. Map ----- +----------------------------------------------------+ | | | ?????????????????????????????????????????????????? | | ?????????????????????????????????????????????????? | | ?????????????????????????????????????????????????? | | ?????????????????????????????????????????????????? | | ?????????????????????????????????????????????????? | | ?????????????????????????????????????????????????? | | ?????????????????????????????????????????????????? | | ?????????????????????????????????????????????????? | | ?????????????????????????????????????????????????? | | ?????????????????????????????????????????????????? | | ?????????????????????????????????????????????????? | | ?????????????????????????????????????????????????? | | ?????????????????????????????????????????????????? | | ?????????????????????????????????????????????????? | | ????????????????????????????????????????####?????? | | ????????????????????????????????####??### ##?###? | | ???????????????????????????????## #### ### #? | | ?????????????????????????###???# #? | | ?????????????????????###?# ##### ## | | ????????????????????## ## ! ## ###### | | ????????????????????# ss s ###????# ## | | ????????????????????# s##??????###### | | ????????????????????# [ #????????????# | | ????????????????????## %s##????????????# | | ?????????????????????### @ s * #???????????? | | ???????????????????????## ##s #??????????## # | | ????????????????????????# % ## ????????#### | | ??????????????????????? ##### ??????????? | | ?????????????????????? ##???# ??????????? | | ????????????????????? % ?????## ??????????? | | ???????????????????? ## %??????#### ??????????? | | ??????????????????????## ?????????? ?????????? | | ???????????????????????# ?????????? ??????????? | | ???????????????????????# ??????????? ???????????? | | ??????????????????????? ????????????????????????? | | ??????????????????????? ????????????????????????? | | ???????????????????????#?????????????????????????? | | ?????????????????????????????????????????????????? | | ?????????????????????????????????????????????????? | | ?????????????????????????????????????????????????# | | ??????????????????????????????????? ?????????## | | ??????????????????????????????????? ????????# | | ???????????????????????????????????# ??????## | | ????????????????????????????????????# ?????## | | ????????????????????????????????????# ##### | | ????????????????????????????????????# | | ???????????????????????????????????# | | ???????????????????????????????????# #### | | ????????????????????????????????????###???????# | +----------------------------------------------------+ Best States ------------- Heat Dissipation 34 Energy Generation 24 Energy Capacity 380 Matter Stores 300 Matter Capacity 300 Sight Range 16 Robot Scan Range 14 Terrain Scan Range 14 Terrain Scan Density 10 Jamming Range 12 Additional Mass Support 6 Propulsion Shielding 66 Evasion (%) 72 Item Schematics ----------------- Imp. Propulsion Shielding | -8/Materials | Scanalyzed Com. Matter Pod | -8/Materials | Scanalyzed Reaction Control System | -8/Materials | Scanalyzed Lgt. Nuclear Core | -7/Factory | Scanalyzed Imp. Deuterium Engine | -7/Factory | Scanalyzed Robot Schematics ------------------ None Fabricated ------------ Adv. Sensor Array | x1 | -7/Factory | Preloaded Imp. Recalibrator | x2 | -7/Factory | Preloaded Alien Tech Used ----------------- None Achievements -------------- None Challenges ------------ None Game ------ Seed DrainedClaymoresSheargun Manual? 0 Play Time 01:01:19 Cumulative 32.7 hours Start 2024.06.05 @ 18:46:33 End 2024.06.05 @ 23:40:22 Sessions 9 Manual Loads 0 Difficulty Rogue Special Mode None Game No. 62 Rogue 62 Adventurer 0 Explorer 0 Win Type - Total 0 Types 0/0/0/0/0/0/0/0/0 Lore% 25 Gallery% 37 Achievement% 28 Wizard Run 0 Options --------- Layout 1 ASCII 0 Keyboard 0 Movement Mouse Keybinds 0 Fullscreen 2 Font 32/Smallcaps Map View 50x35 Zoom Use 0% Tactical HUD 1 Map Filters NONE Filters NONE Steam 1 RUN: d3b4e9c9-2ca8-4e3b-bbdd-5b6b7b196480